Cogmind - Beta 11.1 @@@ ROGUE MODE // 2022.09.17 @ 15:27:46 Player: goblin Result: Destroyed by S-10 Pest with Light Assault Rifle Performance ------------- Evolutions (1) 500 Regions Visited (3) 600 Robots Destroyed (2) 10 Value Destroyed (81) 81 Prototype IDs (1) 20 Alien Tech Used (0) 0 Bonus (0) 0 TOTAL SCORE: 1211 Bonus ------- None Cogmind --------- Core Integrity 0/400 Matter 191/300 Energy 100/100 System Corruption 0% Temperature Cool (6) Movement Core (50) Location -9/Mines Parts ------- > --- POWER (1) -------- (None) > --- PROPULSION (2) --- (None) > --- UTILITY (4) ------ Visual Processing Unit Signal Interpreter > --- WEAPON (2) ------- (None) > --- INVENTORY (5) ---- Wheel EM Shotgun Peak State ------------ > --- POWER ------------ (None) > --- PROPULSION ------- Improved Flight Unit Improved Flight Unit > --- UTILITY ---------- Small Matter Pod Visual Processing Unit Sensor Array Signal Interpreter > --- WEAPON ----------- EM Shotgun Grenade Launcher > --- INVENTORY -------- Wheel [Rating: 14] Favorites ----------- Power Ion Engine Engine Ion Engine Propulsion Aluminum Leg Leg Aluminum Leg Wheel Wheel Flight Unit Flight Unit Utility Large Storage Unit Device Sensor Array Storage Large Storage Unit Processor Signal Interpreter Weapon Assault Rifle Energy Gun EM Shotgun Ballistic Gun Assault Rifle Launcher Grenade Launcher Build | -11 -10 -9 -9 ------- Run | Scr Mat Mat Min Slots Evolved 2 | . . 2 . Power . | . . . . Propulsion . | . . . . Utility 2 | . . 2 . Weapon . | . . . . Parts Attached 25 | 5 12 7 1 Power 1 | 1 . . . Engine 1 | 1 . . . Core . | . . . . Reactor . | . . . . Propulsion 8 | 2 3 3 . Treads . | . . . . Leg 3 | 2 1 . . Wheel 1 | . 1 . . Hover . | . . . . Flight 4 | . 1 3 . Utility 13 | 1 9 3 . Device 1 | . . 1 . Storage 10 | 1 8 1 . Processor 2 | . 1 1 . Hackware . | . . . . Protection . | . . . . Artifact . | . . . . Weapon 3 | 1 . 1 1 Energy Gun 1 | . . 1 . Energy Cannon . | . . . . Ballistic Gun 1 | 1 . . . Ballistic Cannon . | . . . . Launcher 1 | . . . 1 Special Weapon . | . . . . Impact Weapon . | . . . . Slashing Weapon . | . . . . Piercing Weapon . | . . . . Special Melee Weapon . | . . . . Unidentified Prototypes 1 | . . 1 . Parts Lost 7 | . 2 . 5 Power 1 | . 1 . . Propulsion 2 | . . . 2 Utility 2 | . . . 2 Weapon 2 | . 1 . 1 Highest Loss Streak 5 | . 1 . 5 To Critical Strikes . | . . . . Average Slot Usage (%) 58 | . 62 51 62 Engine 2 | . 4 . . Leg 9 | . 18 . . Flight 9 | . 4 13 18 Device 5 | . . 10 9 Storage 12 | . 20 3 6 Processor 11 | . . 21 22 Energy Gun 1 | . . 1 4 Ballistic Gun 6 | . 13 . . Naked Turns . | . . . . Heaviest Build 47 | 12 47 5 5 Greatest Support 20 | 20 20 10 10 Greatest Overweight (x) 10 | . 10 . . Average Overweight (x) . | . . . . Largest Inventory Capacity 15 | 8 15 5 5 Average Capacity 8 | 7 12 5 5 Most Carried 5 | 3 5 5 2 Average Carried 1 | . 1 2 1 Final Capacity 8 | 8 5 5 5 Final Carried 2 | 1 2 2 2 Class Distribution -------------------- 57% | Mutant 42% | Scout Dominant Class ---------------- Mutant | -10/Materials Scout | -9/Materials Scout | -9/Mines Resources | -11 -10 -9 -9 ----------- Run | Scr Mat Mat Min Matter Collected 361 | 250 111 . . Remotely . | . . . . Salvage Created 96 | . 96 . . Parts 4 | . 4 . . Haulers Intercepted . | . . . . Recyclers Shooed 1 | . 1 . . Parts Field Recycled . | . . . . Retrieved Matter . | . . . . Parts Self-Destructed . | . . . . Prevented . | . . . . Kills | -11 -10 -9 -9 ------- Run | Scr Mat Mat Min Combat Hostiles Destroyed 2 | . 2 . . Guns 2 | . 2 . . Classes Destroyed 1 | . 1 . . Grunt 2 | . 2 . . Best Kill Streak 1 | . 1 . . Combat Bots Only 1 | . 1 . . Max Kills in Single Turn 1 | . 1 . . Gunslinging . | . . . . Exploded . | . . . . Melee . | . . . . Uniques/NPCs Destroyed . | . . . . Combat | -11 -10 -9 -9 -------- Run | Scr Mat Mat Min Damage Taken 1027 | . 388 157 482 Core 508 | . 106 64 338 Absorbed by Shields . | . . . . Core Remaining (%) 78 | 100 57 . . Volleys Fired 20 | . 15 1 4 Largest 1 | . 1 1 1 Hottest 45 | . 20 45 45 Shots Fired 20 | . 15 1 4 Gun 19 | . 15 1 3 Cannon . | . . . . Launcher 1 | . . . 1 Special . | . . . . Kinetic 15 | . 15 . . Thermal . | . . . . Explosive 1 | . . . 1 Electromagnetic 4 | . . 1 3 Robot Hit Streak 3 | . 3 . 1 Robot Miss Streak 3 | . 2 2 3 Penetration Max . | . . . . Secondary Targets . | . . . . Shots Hit Robots 12 | . 10 . 2 Core Hits 7 | . 7 . . Critical Kills . | . . . . Critical Parts Destroyed . | . . . . Critical Strikes . | . . . . Melee Attacks . | . . . . Impact . | . . . . Slashing . | . . . . Piercing . | . . . . Sneak Attacks . | . . . . Combat Hostiles . | . . . . Follow-up Attacks . | . . . . Damage Inflicted 174 | . 133 . 41 Guns 146 | . 128 . 18 Cannons . | . . . . Explosions 23 | . . . 23 Melee . | . . . . Ramming 5 | . 5 . . Kinetic 128 | . 128 . . Thermal . | . . . . Explosive 23 | . . . 23 Electromagnetic 18 | . . . 18 Impact . | . . . . Slashing . | . . . . Piercing . | . . . . Highest Corruption 1 | . 1 . . Average Corruption 1 | . 1 . . Corruption Purged . | . . . . Corruption Blocked . | . . . . Overload Shots . | . . . . Overflow Damage 5 | . . . 5 Projectiles . | . . . . Explosions 5 | . . . 5 Melee . | . . . . Knockbacks . | . . . . Impact . | . . . . Kinetic . | . . . . Secondary . | . . . . Self-Inflicted Damage 40 | . . . 40 Shots 1 | . . . 1 Rammed . | . . . . Targets Rammed 3 | . 3 . . Kicked 3 | . 3 . . Crushed . | . . . . Highest Temperature 5 | . 5 . . Average Temperature 5 | . 5 . . Received Heat Transfer 342 | . 216 30 96 Siege Activations . | . . . . Robots Corrupted . | . . . . Combat Hostiles . | . . . . Parts Fried . | . . . . Impact Corruptions . | . . . . Robots Melted . | . . . . Combat Hostiles . | . . . . Parts Melted . | . . . . Heat Transferred . | . . . . Parts Sabotaged . | . . . . Parts Stolen . | . . . . Parts Stripped . | . . . . Power Chain Reactions . | . . . . Missiles Intercepted . | . . . . Alert | -11 -10 -9 -9 ------- Run | Scr Mat Mat Min Peak Influence 150 | . 55 150 86 Initial 58 | . . 1 58 Average 24 | . 35 12 64 Maximum Alert Level . | . . . . Low Security (%) 100 | 100 100 100 100 Level 1 . | . . . . Level 2 . | . . . . Level 3 . | . . . . Level 4 . | . . . . Level 5 . | . . . . High Security . | . . . . Max Security . | . . . . Squads Dispatched 2 | . 1 1 . Investigation 2 | . 1 1 . Extermination . | . . . . Reinforcement . | . . . . Assault . | . . . . Garrison . | . . . . Intercept . | . . . . Searches Triggered . | . . . . Construction Impeded . | . . . . Haulers Reinforced . | . . . . Active Scanning Responses . | . . . . Cargo Convoy Interrupts . | . . . . Stealth | -11 -10 -9 -9 --------- Run | Scr Mat Mat Min Distress Signals 3 | . 2 1 . Communications Jammed . | . . . . Distress Signals . | . . . . Times Spotted 20 | . 4 8 8 Peak Tracking Total 7 | . 2 6 7 Tactical Retreats 3 | . . 2 1 Traps | -11 -10 -9 -9 ------- Run | Scr Mat Mat Min Traps Triggered 1 | . 1 . . Indirectly . | . . . . Trap Hack Attempts . | . . . . Triggered . | . . . . Disarmed . | . . . . Reprogrammed . | . . . . Reused . | . . . . Traps Extracted . | . . . . Installed . | . . . . Triggered . | . . . . Machines | -11 -10 -9 -9 ---------- Run | Scr Mat Mat Min Machines Disabled . | . . . . Max in Single Turn . | . . . . Machines Sabotaged . | . . . . Garrisons Compromised . | . . . . Overloaded Fab Kills . | . . . . Hacking | -11 -10 -9 -9 --------- Run | Scr Mat Mat Min Machines Accessed 6 | . 3 3 . Terminals 4 | . 2 2 . Fabricators . | . . . . Repair Stations . | . . . . Recycling Units 2 | . 1 1 . Scanalyzers . | . . . . Garrison Access . | . . . . Total Hacks 20 | . 11 9 . Successful 14 | . 7 7 . Failed 6 | . 4 2 . Catastrophic . | . . . . Database Lockouts . | . . . . Manual . | . . . . Terminals 11 | . 6 5 . Fabricators . | . . . . Repair Stations . | . . . . Recycling Units 9 | . 5 4 . Scanalyzers . | . . . . Garrison Access . | . . . . Terminal Hacks 5 | . 2 3 . Record 2 | . 2 . . Alert Level 1 | . . 1 . Unreport Threat 1 | . . 1 . Recall Investigation 1 | . . 1 . Fabricator Hacks . | . . . . Repair Station Hacks . | . . . . Recycling Unit Hacks 9 | . 5 4 . Process 2 | . 1 1 . Report Inventory 2 | . 1 1 . Retrieve Matter 3 | . 2 1 . Retrieve Components 2 | . 1 1 . Scanalyzer . | . . . . Garrison Access Hacks . | . . . . Unauthorized Hacks . | . . . . Terminals . | . . . . Fabricators . | . . . . Repair Stations . | . . . . Recycling Units . | . . . . Scanalyzers . | . . . . Garrison Access . | . . . . Data Cores Recovered . | . . . . Used . | . . . . Hacking Detections 6 | . 3 3 . Full Trace Events 4 | . 2 2 . Feedback Events 1 | . 1 . . Corruption 1 | . 1 . . Feedback Blocked . | . . . . Robot Schematics Acquired . | . . . . Robots Built . | . . . . Authchips . | . . . . Time . | . . . . Total Robot Build Rating . | . . . . Part Schematics Acquired . | . . . . Parts Built . | . . . . Authchips . | . . . . Time . | . . . . Total Part Build Rating . | . . . . Parts Repaired . | . . . . Time . | . . . . Parts Recycled . | . . . . Recycled Matter 6 | . 1 5 . Retrieved Matter 1 | . 1 . . Retrieved Components . | . . . . Parts Scanalyzed . | . . . . Part Schematics Acquired . | . . . . Parts Damaged . | . . . . Bothacking | -11 -10 -9 -9 ------------ Run | Scr Mat Mat Min Used RIF Installer . | . . . . Robots Hacked . | . . . . Non-combat . | . . . . Combat . | . . . . Robot Hacks Applied . | . . . . Relay Couplers Released . | . . . . Fabnet Peak Effective % . | . . . . Robots Rewired . | . . . . Allies Hacked . | . . . . Hacks Repelled . | . . . . Allies | -11 -10 -9 -9 -------- Run | Scr Mat Mat Min Total Allies . | . . . . Largest Group . | . . . . Highest-Rated Group . | . . . . Highest-Rated Ally . | . . . . Total Orders . | . . . . Ally Attacks . | . . . . Total Damage . | . . . . Kills . | . . . . Allies Corrupted . | . . . . Allies Melted . | . . . . Intel | -11 -10 -9 -9 ------- Run | Scr Mat Mat Min Robot Analysis Total . | . . . . Derelict Logs Recovered . | . . . . Drone Launches . | . . . . Drone Recoveries . | . . . . Exploration | -11 -10 -9 -9 ------------- Run | Scr Mat Mat Min Turns Passed 1009 | 113 447 382 67 Spaces Moved 898 | 95 297 412 94 Core 30 | 30 . . . Treads . | . . . . Legs 179 | 65 114 . . Wheels 7 | . 7 . . Hover . | . . . . Flight 682 | . 176 412 94 Fastest Speed 37 | 50 40 37 37 Average Speed 72 | 97 122 38 37 Slowest Speed 840 | 120 840 40 37 Overloaded Moves . | . . . . Propulsion Burnouts . | . . . . Robots Hopped 7 | . 2 2 3 Cave-ins Triggered . | . . . . Exploration Rate (%) 22 | 5 26 34 25 Regions Visited 3 Branch Regions 1 Pre-discovered Areas . | . . . . Known Exits Taken 2 | . 1 1 . Unknown Exits Taken 1 | 1 . . . Scrap Searched . | . . . . Spaces Dug . | . . . . Terrain Destroyed 11 | . . . 11 Melee . | . . . . Projectile . | . . . . AOE 11 | . . . 11 Terrain Rammed . | . . . . Walls Destroyed . | . . . . Machines Disabled . | . . . . Actions | -11 -10 -9 -9 --------- Run | Scr Mat Mat Min Total 1236 | 115 368 633 120 Wait 253 | 10 14 206 23 Move 881 | 94 292 407 88 Hop 7 | . 2 2 3 Pick Up 24 | 6 11 7 . Fast Attach . | . . . . Attach 23 | 5 11 6 1 Detach 12 | . 10 1 1 Swap 2 | . 1 1 . Drop 11 | . 9 2 . Fire 20 | . 15 1 4 Melee . | . . . . Ram . | . . . . Kick 3 | . 3 . . Crush . | . . . . Escape Stasis . | . . . . Rewire . | . . . . Trap . | . . . . Miscellaneous . | . . . . Route ------- -11/Scrapyard -10/Materials -9/Materials -9/Mines History --------- Turn | Location | Event 14 | -11/Scrapyard | Discovered new exit (range 15) 114 | -11/Scrapyard | Entered Materials 303 | -10/Materials | Build established: Mutant 527 | -10/Materials | Discovered new exit (range 7) 560 | -10/Materials | Identified exit to Materials 561 | -10/Materials | Entered another Materials area 561 | -9/Materials | Evolved 2 slots: Utility x2 872 | -9/Materials | Build established: Scout 940 | -9/Materials | Discovered new exit (range 10) 943 | -9/Materials | Identified exit to Mines 943 | -9/Materials | Entered Mines 1000 | -9/Mines | Core integrity fell below 50% 1006 | -9/Mines | Core integrity fell below 20% 1010 | -9/Mines | Destroyed by S-10 Pest with Light Assault Rifle Last Messages --------------- Acquired EM Shotgun. Dropped Flight Unit. Dropped Sml. Storage Unit. W-16 Scout sends out distress signal. T-07 Excavator is excavating. U-05 Engineer lays Concrete. K-01 Serf collects debris. T-07 Excavator is excavating. K-01 Serf collects debris. EXIT=FOUND EXIT=IDENTIFIED: MINES LOCATION=MINES GOAL=ESCAPE Sml. Matter Pod destroyed. Destroyed Sml. Matter Pod. Grenade Launcher destroyed. S-10 Pest destroyed. Imp. Flight Unit destroyed. Sensor Array destroyed. Imp. Flight Unit destroyed. Map ----- +----------------------------------------------------+ | ?????????????????????????????????????????????? | | ?????????????????????????????????????????????? | | ?????????????????????????????????????????????? | | ?????????????????????????????????????????????? | | ???????????# ?????????????? ???????????????? | | ??????????## ?????????????? ??????????????? | | ??????????# ?????????????? ??????????????? | | ??????????# ?????????????? ??????????????? | | ??????????? ?????????????? ??????????????? | | ??????????? ?????????????? ??????????????? | | ??????????? ??????????????# ??????????????? | | ??????????? ??????????????# ??????????????? | | ???????????? ##????????????# #??????????????? | | ???????????? ##???????????# #?????????###### | | ???????????? ???????????# #?????????# | | ???????????? ????????????# #?????????# """ | | ???# ?##??# ?????????#### #?????????# """ | | ???? ## #?????##### # #?????????# """ | | ?????????# #????## ##????????# | | ?????????#### #???## #######??# """ | | ????# ?????# #???# #??# """ | | ????# ## ###?# ## #### #??# """ | | ????# #??# #??## #??# #??# | | ???# ### #??# #???## #??# #??### ## | | ???# #??# ####g #????# ##??# ###### #? | | ???## ###???# # g@#????# ##???# #? | | ????###???????# ss%s #????# #????##########? | | ??????????????#### = #????# #??????????????? | | ???????????????##### #???## ##?????????????? | | ???????????????# ##??## #?????????????? | | ???????????????# #####?### ##?????????????? | | ???????????????# #????## ##??????????????? | | ???????????????# #????# ##???????????????? | | ???????????????# #????# #????????????????? | | ???????????????# ###### ### ?????? | | ???????????????# #??????????? | | ???????????????# ##??????????? | | ???????????????######### ##???????????? | | ???????????????????????# ####????????????? | | ???????????????????????## ##???????????????? | | ????????????????????????## #????????????????? | | ?????????????????????????# #????????????????? | | ?????????????????????????# #????????????????? | | ?????????????????????????# #????????????????? | | ?????????????????????????# #????????????????? | | ?????????????????????????? #????????????????? | | ?????????????????????????? ##????????????????? | | ?????????????????????????? ??????????????????? | | ?????????????????????????? ??????????????????? | | ?????????????????????????????????????????????? | +----------------------------------------------------+ Best States ------------- Heat Dissipation 28 Energy Generation 10 Energy Capacity 250 Matter Stores 300 Matter Capacity 350 Sight Range 18 Robot Scan Range 14 Terrain Scan Density 10 Evasion (%) 62 Item Schematics ----------------- None Robot Schematics ------------------ None Fabricated ------------ Nothing Alien Tech Used ----------------- None Achievements -------------- None Challenges ------------ None Game ------ Seed SeismicNeutronCasing Manual? 0 Play Time 00:26:02 Cumulative 2.2 hours Start 2022.09.17 @ 14:37:39 End 2022.09.17 @ 15:27:46 Sessions 2 Manual Loads 0 Difficulty Rogue Special Mode None Game No. 11 Rogue 11 Adventurer 0 Explorer 0 Win Type - Total 0 Types 0/0/0/0/0/0/0/0/0 Lore% 1 Gallery% 3 Achievement% 4 Wizard Run 0 Options --------- ASCII 0 Keyboard 0 Movement Numpad Keybinds 0 Fullscreen 1 Font 18/SmallcapsGlow Map View 76x50 Tactical HUD 0 Map Filters NONE Filters NONE Steam 1 RUN: 8311f914-3fc3-4a72-9ed8-4456405862a1